bitfinex-derivatives/quotes_ETHF0:USTF0_20260310
["timestamp","ask_amount","ask_price","bid_price","bid_amount"]
[1773183073220,0.67566125,2029.1,2028.7,0.62209777]
[1773183073426,0.68392724,2029.3,2028.9,0.62209777]
[1773183073725,0.43755724,2029.2,2028.6,0.62209777]
[1773183073925,0.43755724,2028.9,2028.4,0.62209777]
[1773183074325,0.44173324,2028.9,2028.4,0.62209777]
[1773183075829,0.44173324,2028.9,2028.5,0.62209777]
[1773183077934,0.44330897,2029.2,2028.8,0.62209777]
[1773183078923,0.44879251,2029.2,2028.8,0.62209777]
[1773183081834,0.45321317,2029.2,2028.8,0.62209777]
[1773183082424,0.00548354,2029.2,2028.8,0.62209777]
[1773183083130,0.4557866,2029.2,2028.8,0.62209777]
[1773183086235,0.45196794,2029.4,2029.1,0.64400284]
[1773183087233,0.45830446,2029.4,2029.1,0.64829554]
[1773183088233,0.00633652,2029.4,2029.1,0.64829554]
[1773183089632,0.44854899,2029.7,2029.2,0.64400284]
[1773183089833,0.44854899,2029.7,2028.8,0.64400284]
[1773183089834,0.44854899,2029.5,2028.8,0.64400284]
[1773183090731,0.44854899,2029.5,2028.9,0.64400284]
[1773183090934,0.45267013,2029.5,2028.9,0.64821606]
[1773183106455,0.00412114,2029.5,2028.9,0.64821606]
[1773183106658,0.24628,2030.1,2028.9,0.64821606]
[1773183106962,0.69272565,2030.1,2029.2,0.64400284]
[1773183107654,0.6968618,2030.1,2029.2,0.64400284]
[1773183109352,0.4505818,2030.1,2029.2,0.64400284]
[1773183111563,0.00413615,2030.1,2029.2,0.64400284]
[1773183113166,0.45515927,2030.1,2029.2,0.64400284]
[1773183114761,0.00413615,2030.1,2029.5,0.68772863]
[1773183121067,0.45692167,2030.5,2029.5,0.68772863]
[1773183121470,0.46133471,2030.6,2029.8,0.68772863]
[1773183121977,0.46443851,2030.6,2029.8,0.68772863]
[1773183122472,0.0031038,2030.6,2029.8,0.68772863]
[1773183122674,0.46162561,2030.8,2030.1,0.68772863]
[1773183122968,0.46162561,2030.9,2030.1,0.68772863]
[1773183123370,0.46189441,2031.0,2030.1,0.68772863]
[1773183123776,0.46189441,2031.3,2030.4,0.68772863]
[1773183123975,0.46189441,2031.3,2030.4,0.6939492]
[1773183124873,0.24617,2031.0,2030.4,0.00622057]
[1773183125071,0.46544685,2030.9,2030.2,0.68772863]
[1773183125977,0.46955537,2030.9,2030.2,0.69236709]
[1773183126684,0.71094467,2030.8,2030.2,0.69236709]
[1773183127178,0.24619,2030.8,2030.2,0.69236709]
[1773183128182,0.71121043,2030.8,2030.2,0.69236709]
[1773183131782,0.44024609,2030.5,2030.0,0.68772863]
[1773183132082,0.43560763,2030.5,2029.6,1.94247412]
[1773183132287,0.43560763,2030.5,2029.7,0.68772863]
[1773183132888,0.43560763,2030.5,2029.7,0.69405117]
[1773183136784,0.4161801,2030.8,2030.0,0.68772863]
[1773183150909,0.38883739,2030.8,2030.0,0.68772863]
[1773183165618,0.38883739,2030.8,2030.1,0.69342184]
[1773183183025,0.00410852,2030.9,2030.3,0.66982575]
[1773183183231,0.00410852,2030.9,2030.5,0.66982575]
[1773183183627,0.24613,2031.3,2030.5,0.66982575]
[1773183183826,0.39158024,2031.2,2030.7,0.66982575]
[1773183184228,0.39158024,2031.0,2030.3,10.01082575]
[1773183184431,0.39173836,2030.6,2030.3,0.66982575]
[1773183184628,0.39173836,2030.6,2030.0,0.66982575]
[1773183184933,0.39615334,2030.6,2030.1,0.66982575]
[1773183186031,0.00441498,2030.6,2030.1,0.66982575]
[1773183186532,0.40426395,2030.6,2030.1,0.66982575]
[1773183188039,0.00441498,2030.6,2030.3,0.66982575]
[1773183188427,0.39733316,2030.9,2030.3,0.66982575]
[1773183188630,0.39733316,2031.5,2030.9,0.66982575]
[1773183189134,2.33724411,2031.7,2030.9,0.66982575]
[1773183189337,0.39733316,2031.6,2030.9,0.66982575]
[1773183191136,0.40340086,2031.4,2030.9,0.66982575]
[1773183195840,0.39643687,2031.1,2030.7,0.66982575]
[1773183199640,0.64259687,2031.1,2030.5,8.32949113]
[1773183199944,0.37804376,2030.9,2030.5,0.6337371]
[1773183200344,0.37656752,2031.4,2030.8,0.6337371]
[1773183200545,2.31647847,2030.9,2030.6,0.6337371]
[1773183200740,2.31647847,2030.9,2030.3,0.6337371]
[1773183200741,0.63441536,2030.8,2030.3,0.6337371]
[1773183201146,1.93991095,2030.7,2030.3,0.6337371]
[1773183201349,0.63441536,2030.6,2030.3,0.6337371]
[1773183202044,0.63441536,2030.6,2030.2,0.6337371]
[1773183202945,0.63441536,2030.6,2030.1,0.6337371]
[1773183203452,0.63441536,2030.6,2029.9,7.69575403]
[1773183203453,0.63441536,2030.4,2029.9,0.6337371]
[1773183203644,0.63441536,2030.4,2029.7,17.71381367]
[1773183203841,0.63441536,2030.4,2029.8,0.6337371]
[1773183204548,0.63441536,2030.3,2029.8,0.6337371]
[1773183206147,0.63441536,2030.5,2030.0,0.6337371]
[1773183206449,0.63441536,2031.1,2030.4,0.6337371]
[1773183220554,0.63441536,2031.1,2029.6,13.15244734]
[1773183220555,6.05885,2030.0,2029.6,6.46765053]
[1773183220758,6.05885,2030.0,2028.7,0.69530957]
[1773183220759,0.24634,2029.6,2028.7,0.69530957]
[1773183220957,1.93991095,2029.2,2028.7,6.46765053]
[1773183221158,1.93991095,2029.4,2028.7,7.1629601]
[1773183221352,0.00088002,2029.2,2028.7,7.1629601]
[1773183221659,0.0071878,2029.2,2028.7,7.16920777]
[1773183221954,0.00630778,2029.2,2028.7,7.16920777]
[1773183222159,0.57473423,2029.0,2028.5,5.73180657]
[1773183222361,0.57473423,2029.0,2028.5,0.12138247]
[1773183223061,0.57473423,2029.0,2028.5,0.12686145]
[1773183223865,0.57473423,2029.0,2028.5,5.53307192]
[1773183224954,0.57473423,2029.0,2028.5,5.5376135]
[1773183225857,0.57473423,2029.0,2027.4,2.10888506]
[1773183225858,0.63441536,2027.4,2025.9,0.90928175]
[1773183226060,0.63441536,2027.2,2025.9,0.90928175]
[1773183226966,0.63831812,2027.2,2025.9,0.91286649]
[1773183227463,1.11122324,2027.0,2025.9,0.91286649]
[1773183229465,1.09091202,2026.8,2025.9,0.91286649]
[1773183231568,1.09457014,2026.7,2025.9,0.91286649]
[1773183232367,0.24666,2026.9,2025.9,0.91286649]
[1773183234670,1.09539222,2027.0,2025.9,0.91286649]
[1773183234865,7.54279081,2027.2,2025.9,0.91286649]
[1773183235467,1.07465097,2027.1,2025.9,0.91286649]
[1773183240771,1.04800358,2027.2,2025.9,0.91286649]
[1773183243769,1.04800358,2027.2,2026.0,0.24677]
[1773183244071,1.04800358,2027.2,2026.1,1.45609655]
[1773183250067,1.09621625,2026.6,2026.1,1.45609655]
[1773183250267,1.08896523,2026.4,2025.9,1.45968129]
[1773183250469,1.09030326,2026.2,2025.9,1.45968129]
[1773183250672,1.09030326,2026.2,2025.1,0.24687]
[1773183250673,1.09030326,2026.2,2025.7,1.45609655]
[1773183251572,1.09030326,2026.2,2025.7,1.46170368]
[1773183252777,1.66405273,2026.8,2025.7,1.46170368]
[1773183254176,7.26162171,2026.7,2025.7,1.46170368]
[1773183254372,1.66405273,2026.8,2025.7,1.46170368]
[1773183255277,7.28561547,2026.7,2025.7,1.46170368]
[1773183255470,7.28561547,2026.6,2025.7,1.46170368]
[1773183255670,1.66405273,2026.8,2025.7,1.46170368]
[1773183255871,7.28561547,2026.7,2025.7,1.46170368]
[1773183256174,1.66405273,2026.8,2025.8,40.8]
[1773183256377,7.1012318,2026.7,2025.9,1.45609655]
[1773183256673,1.41737273,2026.8,2025.9,1.45609655]
[1773183256977,7.1012318,2026.7,2025.9,1.45609655]
[1773183257276,1.41737273,2026.8,2025.9,1.45609655]
[1773183257477,7.06642433,2026.7,2025.9,1.45609655]
[1773183257775,1.41737273,2026.8,2025.9,1.45609655]
[1773183257975,7.06642433,2026.7,2025.9,1.45609655]
[1773183258176,1.41737273,2026.8,2025.9,1.45609655]
[1773183258377,7.06642573,2026.7,2025.9,1.45609655]
[1773183258576,1.41737273,2026.8,2025.9,1.45609655]
[1773183258776,7.06642573,2026.7,2025.9,1.45609655]
[1773183258977,1.41737273,2026.8,2025.9,1.45609655]
[1773183259176,7.04485473,2026.7,2025.9,1.45609655]
[1773183259377,1.41737273,2026.8,2025.9,1.45609655]
[1773183259580,7.04485554,2026.7,2025.9,1.45609655]
[1773183259778,1.41737273,2026.8,2025.9,1.45609655]
[1773183259977,7.0448325,2026.7,2025.9,1.45609655]
[1773183260175,1.41737273,2026.8,2025.9,1.45609655]
[1773183260878,1.29842327,2027.1,2026.1,1.29924444]
[1773183261078,8.34296022,2027.0,2026.1,1.29924444]
[1773183261380,8.34296022,2026.9,2026.1,1.29924444]
[1773183261580,7.04453695,2026.8,2026.1,1.29924444]
[1773183261782,1.29842327,2026.9,2026.1,1.29924444]
[1773183262382,1.29842327,2027.1,2026.1,1.29924444]
[1773183262585,8.29737518,2027.0,2026.1,1.29924444]
[1773183262882,1.30232603,2027.2,2026.3,1.29924444]
[1773183263083,6.99895191,2027.1,2026.3,1.29924444]
[1773183263385,1.30232603,2027.2,2026.3,1.29924444]
[1773183295513,1.31036514,2027.0,2026.0,1.26044564]
[1773183300713,1.31036514,2026.8,2026.0,1.26044564]
[1773183300910,1.31036514,2026.4,2025.9,1.26044564]
[1773183301116,1.55703514,2026.9,2025.9,1.26044564]
[1773183301310,1.31036514,2026.7,2025.9,1.50722564]
[1773183301615,1.31036514,2026.8,2026.1,1.26044564]
[1773183306115,1.31036514,2026.8,2026.0,9.324]
[1773183306316,1.31036514,2026.8,2026.0,10.58444564]
[1773183306716,1.31036514,2026.8,2026.1,1.26044564]
[1773183307112,1.31036514,2026.8,2026.0,9.324]
[1773183307714,1.31036514,2026.6,2026.0,9.324]
[1773183308311,1.31036514,2026.6,2025.9,1.26044564]
[1773183309221,1.31036514,2026.6,2025.8,1.26044564]
[1773183313519,1.31036514,2026.6,2025.7,11.2907781]
[1773183313820,1.31036514,2026.6,2025.7,12.55122374]
[1773183315020,1.31036514,2026.6,2025.8,1.26044564]
[1773183316119,1.31036514,2026.4,2025.7,9.34260713]
[1773183317118,1.31036514,2026.4,2025.7,10.60305277]
[1773183317320,1.31036514,2026.4,2025.8,1.26044564]
[1773183325628,1.22785474,2026.9,2026.2,1.12021698]
[1773183326228,1.22785474,2026.8,2026.2,1.12021698]
[1773183329224,0.24666,2027.0,2026.2,1.12021698]
[1773183329432,1.22785474,2026.9,2026.2,1.12021698]
[1773183336637,1.22785474,2026.9,2026.4,1.12021698]
[1773183336939,1.22785474,2027.1,2026.4,1.12021698]
[1773183338337,1.22785474,2027.0,2026.4,1.12021698]
[1773183344744,1.22785474,2027.5,2026.8,1.12021698]
[1773183344941,1.22785474,2027.5,2027.0,1.12021698]
[1773183345342,1.22785474,2027.5,2026.4,0.24672]
[1773183345343,1.22785474,2027.1,2026.4,1.12021698]
[1773183345946,1.23211678,2027.1,2026.4,1.12021698]
[1773183350048,1.05466569,2026.9,2025.9,1.04760414]
[1773183352653,1.05466569,2027.0,2025.9,1.04760414]
[1773183355555,1.05466569,2027.0,2026.0,1.04760414]
[1773183361054,1.05466569,2026.8,2026.0,1.04760414]
[1773183361350,1.05466569,2026.8,2025.9,1.04760414]
[1773183361551,1.05466569,2026.6,2025.9,1.04760414]
[1773183384785,0.99750362,2026.4,2025.7,1.0379736]
[1773183407693,0.99750362,2026.4,2025.9,0.9326493]
[1773183408500,0.95001895,2026.2,2025.7,0.93825643]
[1773183410402,0.95001895,2026.2,2025.7,0.00560713]
[1773183410702,0.95001895,2026.2,2025.7,0.92658129]
[1773183437130,0.9074236,2026.0,2025.7,0.00560713]
[1773183439231,0.79291615,2026.0,2025.7,0.00560713]
[1773183439432,0.68293594,2026.2,2025.7,0.81577527]
[1773183447141,2.74558967,2026.1,2025.7,0.81577527]
[1773183447434,2.74558967,2026.1,2025.7,0.00560713]
[1773183447435,0.79744339,2026.0,2025.7,0.00560713]
[1773183450843,0.79744339,2025.8,2025.2,0.81016814]
[1773183451849,0.79744339,2025.8,2025.2,0.81643864]
[1773183453749,0.79744339,2025.8,2025.3,0.81016814]
[1773183454446,1.94814628,2026.2,2025.3,0.81016814]
[1773183454749,0.79744339,2025.9,2025.3,0.81016814]
[1773183455049,0.79744339,2026.3,2025.5,0.81016814]
[1773183455246,0.79744339,2026.2,2025.7,0.81016814]
[1773183461263,6.461,2026.7,2025.9,0.81016814]
[1773183461264,0.79744339,2026.5,2025.9,0.81016814]
[1773183461463,0.79744339,2026.3,2025.9,0.81016814]
[1773183464966,0.79744339,2026.4,2025.9,0.81016814]
[1773183471972,0.7510102,2026.7,2025.9,0.81016814]
[1773183474277,0.7510102,2026.8,2025.9,0.81016814]
[1773183474974,0.7510102,2026.7,2025.9,0.81016814]
[1773183475169,0.7510102,2026.7,2025.5,0.74306292]
[1773183475474,0.7510102,2026.4,2025.5,0.74306292]
[1773183498289,0.7510102,2026.5,2025.7,0.74306292]
[1773183499994,4.38549573,2027.0,2025.7,0.74306292]
[1773183500299,0.69117345,2026.8,2025.7,0.74306292]
[1773183502999,0.69117345,2026.8,2026.0,0.67778293]
[1773183504800,0.24666,2027.0,2026.0,0.67778293]
[1773183505000,7.45683655,2026.9,2026.0,0.67778293]
[1773183505300,0.69117345,2026.8,2026.0,0.67778293]
[1773183529822,0.69117345,2026.8,2026.2,0.66616574]
[1773183531021,0.62811627,2027.0,2026.4,0.66616574]
[1773183531226,0.62811627,2027.0,2026.6,0.66616574]
[1773183533627,0.16290858,2027.0,2026.6,0.66616574]
[1773183533827,0.00426204,2027.1,2026.6,0.66616574]
[1773183534229,0.24661,2027.4,2026.9,0.6782449]
[1773183535427,0.25292812,2027.4,2026.9,0.6822646]
[1773183537130,0.00631812,2027.4,2026.9,0.6822646]
[1773183554051,1.94742319,2027.5,2027.0,0.67529541]
[1773183554547,2.19402319,2027.5,2027.0,0.67529541]
[1773183554948,2.19864663,2027.5,2027.0,0.67529541]
[1773183556249,1.94742319,2027.1,2026.6,0.67660025]
[1773183556450,1.94742319,2027.1,2026.0,10.61242319]
[1773183556655,1.94742319,2027.1,2026.5,0.6844749]
[1773183557351,1.94742319,2026.9,2026.5,0.69017608]
[1773183557956,0.27405324,2026.8,2026.5,0.00570118]
[1773183558155,0.27405324,2026.8,2026.4,0.66616574]
[1773183559152,0.27405324,2026.8,2026.4,0.67168237]
[1773183561751,0.26772635,2026.9,2026.4,0.67168237]
[1773183568160,2.19870709,2027.0,2026.4,0.67168237]
[1773183586967,4.41256352,2027.4,2026.6,1.94742319]
[1773183587169,0.27372779,2027.1,2026.5,0.6503076]
[1773183590575,0.24665,2027.0,2026.5,0.6503076]
[1773183590879,0.26927173,2026.8,2026.4,0.65068856]
[1773183592476,0.27149676,2026.9,2026.4,0.65068856]
[1773183592772,0.24665,2027.0,2026.4,0.65068856]
[1773183593176,0.51814676,2027.0,2026.4,0.65068856]
[1773183593376,0.27149676,2026.9,2026.4,0.65068856]
[1773183594582,0.26863333,2027.3,2026.4,0.65068856]
[1773183594778,0.26863333,2027.1,2026.4,0.65068856]
[1773183595579,4.13883573,2027.4,2026.4,0.65068856]
[1773183595783,6.73652285,2027.3,2026.5,0.64517193]
[1773183595978,0.26860746,2027.4,2026.5,0.64517193]
[1773183596178,6.73652285,2027.3,2026.5,0.64517193]
[1773183596481,0.26860746,2027.4,2026.5,0.64517193]
[1773183596679,0.00462344,2027.5,2027.0,1.94748561]
[1773183596889,0.2795184,2027.5,2026.6,8.561]
[1773183597082,0.2795184,2027.5,2026.7,0.64517193]
[1773183601392,0.28348726,2027.3,2026.7,0.64517193]
[1773183601694,1.95210905,2027.5,2026.9,0.64517193]
[1773183601695,0.00462344,2027.5,2026.9,0.64517193]
[1773183601885,0.24656,2027.8,2026.9,0.64517193]
[1773183602088,6.65353922,2028.1,2027.2,0.64517193]
[1773183602292,0.28808746,2028.2,2027.2,0.64517193]
[1773183602992,0.29174072,2028.2,2027.2,0.64517193]
[1773183603186,0.29773379,2028.1,2027.2,0.64517193]
[1773183604491,0.3018223,2027.8,2026.7,0.64517193]
[1773183619906,0.24653,2028.0,2027.0,0.65148854]
[1773183620607,0.59299239,2028.0,2027.0,0.65148854]
[1773183621008,0.34646239,2027.9,2027.0,0.65148854]
[1773183625511,0.59538769,2028.0,2027.0,0.65148854]
[1773183627213,0.59538769,2028.0,2027.1,1.94748561]
[1773183627415,0.35137982,2028.2,2027.2,0.65148854]
[1773183628916,0.35137982,2028.2,2027.4,0.65148854]
[1773183629817,0.00365326,2028.2,2027.4,0.65148854]
[1773183630411,0.00365326,2028.2,2027.4,0.89808854]
[1773183630614,6.373,2028.7,2027.8,0.65148854]
[1773183630615,0.34818854,2028.7,2027.8,0.65148854]
[1773183630815,0.34818854,2028.8,2027.8,0.65148854]
[1773183631714,0.35313907,2028.8,2027.8,0.65148854]
[1773183634620,0.00495053,2028.8,2028.1,0.65148854]
[1773183634821,0.00495053,2028.8,2028.1,0.65519664]
[1773183639426,0.3256597,2028.8,2028.1,0.65519664]
[1773183647130,0.00495053,2028.8,2028.1,0.65519664]
[1773183647524,0.5791539,2029.4,2028.4,0.63596458]
[1773183648520,0.58325416,2029.4,2028.4,0.63596458]
[1773183649919,0.32339817,2029.3,2028.4,0.63596458]
[1773183650320,0.32339817,2029.1,2028.4,0.63596458]
[1773183650922,0.24639,2029.2,2028.4,0.63596458]
[1773183651121,0.5717711,2029.2,2028.4,0.63596458]
[1773183651526,0.32538205,2029.1,2028.4,0.63596458]
[1773183660736,1.94332873,2029.0,2028.4,0.63596458]
[1773183661036,0.32413886,2028.9,2028.4,0.63596458]
[1773183662640,0.24637,2029.3,2028.7,0.62067468]
[1773183662840,0.32472572,2029.8,2029.3,0.62067468]
[1773183663043,0.32882598,2030.1,2029.4,1.94332873]
[1773183663240,0.32882598,2030.1,2029.5,0.62067468]
[1773183663944,0.33444302,2030.1,2029.5,0.62067468]
[1773183666243,0.00561704,2030.1,2029.5,0.62067468]
[1773183666442,0.31127545,2030.4,2029.7,0.62067468]
[1773183666746,0.31127545,2030.8,2030.3,0.62067468]
[1773183666945,2.25460418,2030.6,2030.2,0.62067468]
[1773183667141,0.3168925,2030.5,2029.8,0.62067468]
[1773183667347,0.31689202,2030.7,2029.9,0.62067468]
[1773183667542,0.32284246,2030.7,2029.9,0.62698165]
[1773183668943,0.32284246,2030.7,2030.1,0.62067468]
[1773183669739,0.00595044,2030.7,2030.1,0.62067468]
[1773183671146,0.33351003,2030.7,2030.1,0.62067468]
[1773183671545,0.00595044,2030.7,2030.1,0.62067468]
[1773183672245,0.33350938,2031.1,2030.3,0.62067468]
[1773183672646,0.33350938,2031.1,2030.5,0.62067468]
[1773183673247,0.32932953,2031.2,2030.5,0.62067468]
[1773183673447,0.32933015,2031.5,2030.7,0.62067468]
[1773183675253,0.33069013,2031.7,2031.0,0.62067468]
[1773183675549,2.18934873,2032.2,2031.2,0.62067468]
[1773183675550,0.33068795,2032.0,2031.2,0.62067468]
[1773183678153,5.29031402,2033.3,2031.8,0.62067468]
[1773183678455,0.33408832,2033.0,2032.0,0.62067468]
[1773183679250,0.34287591,2032.8,2032.0,0.62067468]
[1773183680155,0.34254216,2032.6,2031.8,0.64775943]
[1773183680460,0.34254216,2032.6,2031.5,0.64429159]
[1773183680959,0.24599,2032.5,2031.5,0.64429159]
[1773183681159,0.33773539,2032.4,2031.5,0.64429159]
[1773183681560,0.34144354,2032.4,2031.5,0.65013661]
[1773183682857,0.24601,2032.3,2031.5,0.65013661]
[1773183683060,0.24606,2031.9,2031.2,0.64429159]
[1773183683259,0.33497146,2031.8,2031.2,0.64429159]
[1773183683560,0.33497609,2031.4,2030.6,0.64429159]
[1773183683860,0.33497609,2031.2,2030.6,0.64429159]
[1773183684060,0.33497609,2031.2,2030.4,0.64429159]
[1773183684256,0.24615,2031.1,2030.4,0.64429159]
[1773183684460,0.33497609,2031.0,2030.4,0.64429159]
[1773183685063,0.33497609,2031.0,2029.8,0.64429159]
[1773183685263,0.33497609,2031.0,2029.8,0.65003749]
[1773183687362,0.24618,2030.9,2029.8,0.65003749]
[1773183687563,0.38505837,2030.8,2029.8,0.65003749]
[1773183687970,0.38505824,2030.6,2029.8,0.65003749]
[1773183688962,0.37879103,2030.4,2029.8,0.0057459]
[1773183689665,6.45,2030.8,2029.8,0.65003749]
[1773183689666,0.37879582,2030.8,2029.8,0.65003749]
[1773183692558,0.00436092,2030.9,2029.8,0.65003749]
[1773183694460,0.37819894,2031.4,2030.1,0.64429159]
[1773183695369,0.3845154,2031.4,2030.1,0.64429159]
[1773183698065,0.38295593,2031.2,2030.1,0.64429159]
[1773183701166,0.24613,2031.3,2030.1,0.64429159]
[1773183701566,0.39840117,2031.4,2030.1,0.64429159]
[1773183701770,0.39840117,2031.4,2030.0,11.1053858]
[1773183701771,0.00631646,2031.4,2030.4,0.64429159]
[1773183702170,0.63815459,2031.8,2030.4,0.64429159]
[1773183702171,0.39208459,2031.8,2030.5,0.64429159]
[1773183702372,0.39208459,2031.8,2030.7,0.64429159]
[1773183702867,0.39865058,2031.6,2030.7,0.64429159]
[1773183703067,0.40228764,2031.6,2030.7,0.64429159]
[1773183705874,0.4014839,2032.2,2030.9,0.64429159]
[1773183706080,0.4014839,2032.0,2030.9,0.64429159]
[1773183706877,0.40256334,2032.0,2030.9,0.64429159]
[1773183710273,0.00107944,2032.0,2030.9,0.64429159]
[1773183710480,0.40034304,2032.0,2030.9,0.64429159]
[1773183714889,0.41121422,2031.5,2030.9,0.64429159]
[1773183716678,0.40754628,2031.7,2030.9,0.64429159]
[1773183718482,0.40733722,2031.9,2030.9,0.64429159]
[1773183718789,0.40841666,2032.0,2030.9,0.64429159]
[1773183718988,0.00107944,2032.0,2030.9,0.64429159]
[1773183719286,0.00107944,2032.0,2030.4,19.11303106]
[1773183719287,0.40841666,2032.0,2031.1,0.66048666]
[1773183719482,0.00107944,2032.0,2031.1,0.66048666]
[1773183720991,0.36491949,2032.0,2031.1,0.64248666]
[1773183721893,0.38186422,2031.8,2031.1,0.64248666]
[1773183722593,0.24608,2031.7,2031.1,0.64248666]
[1773183722895,0.394873,2031.6,2030.4,0.66048666]
[1773183724090,0.24608,2031.7,2030.4,0.66048666]
[1773183724589,0.62861423,2031.7,2030.4,0.66048666]
[1773183725196,0.62861423,2031.7,2030.5,0.66048666]
[1773183725699,0.38255834,2031.9,2030.6,0.66048666]
[1773183726594,0.38255834,2031.9,2030.5,0.24622]
[1773183726595,0.00107944,2032.0,2030.8,0.66048666]
[1773183727693,0.00107944,2032.0,2031.0,0.66048666]
[1773183727894,0.00107944,2032.0,2031.0,9.01248666]
[1773183728095,0.00107944,2032.0,2031.1,0.66048666]
[1773183728294,0.37949015,2032.0,2031.1,0.66048666]
[1773183731300,0.37807762,2031.8,2031.1,0.66048666]
[1773183744704,0.61277473,2031.9,2031.1,0.66048666]
[1773183745107,0.36671473,2031.8,2031.1,0.66048666]
[1773183754011,0.24608,2031.7,2031.1,0.66048666]
[1773183754210,0.3733775,2031.6,2031.1,0.66048666]
[1773183754404,0.61947052,2031.7,2031.1,0.66048666]
[1773183754809,0.24608,2031.7,2031.1,0.66048666]
[1773183755209,0.62036732,2031.7,2031.1,0.66048666]
[1773183757511,0.00107944,2032.0,2031.1,0.66048666]
[1773183757716,0.37369415,2031.9,2031.1,0.66048666]
[1773183758512,0.37369415,2031.9,2030.8,0.63300027]
[1773183758513,0.37403017,2031.5,2030.8,0.63300027]
[1773183758816,0.37403017,2031.7,2030.8,0.63300027]
[1773183759015,0.37403017,2031.9,2030.8,0.63300027]
[1773183759316,6.83991749,2031.8,2030.8,0.63300027]
[1773183759515,0.37403017,2031.8,2030.8,0.63300027]
[1773183761421,0.42962417,2031.9,2030.8,0.63300027]
[1773183762723,0.44779425,2031.7,2030.8,0.63300027]
[1773183765419,0.4729326,2032.0,2030.9,0.63300027]
[1773183765623,0.4729326,2032.0,2031.1,0.63300027]
[1773183768127,0.00107944,2032.0,2031.1,0.63300027]
[1773183768924,0.47902338,2032.0,2031.1,0.63300027]
[1773183779532,0.47902338,2032.0,2031.1,2.57088702]
[1773183779733,0.47902338,2032.0,2031.2,0.65660367]
[1773183780532,2.44226075,2031.9,2031.2,0.65660367]
[1773183780737,0.504374,2031.6,2031.2,0.65660367]
[1773183782534,0.50478399,2031.4,2030.8,0.65660367]
[1773183782735,1.93788675,2031.3,2030.8,0.65660367]
[1773183782935,0.50478399,2031.5,2030.8,0.65660367]
[1773183783134,2.18397675,2031.7,2031.2,0.65660367]
[1773183783135,0.50478399,2031.7,2031.2,0.65660367]
[1773183783329,0.02281817,2031.7,2031.2,0.65660367]
[1773183783938,0.02321136,2031.8,2031.2,0.65660367]
[1773183784140,0.02321136,2031.9,2031.2,0.65660367]
[1773183794743,0.0212542,2031.6,2031.0,0.66246776]
[1773183794945,2.90706018,2031.9,2031.0,0.36791721]
[1773183794946,6.79972329,2031.8,2031.0,0.36791721]
[1773183795142,6.69506,2031.9,2031.0,0.36791721]
[1773183795143,0.31580475,2031.6,2031.0,0.36791721]
[1773183796946,0.65048644,2031.4,2030.2,0.65660367]
[1773183797143,0.65048644,2031.2,2030.2,0.65660367]
[1773183797348,0.65048644,2030.8,2030.2,0.65660367]
[1773183797640,0.65048644,2030.6,2030.2,0.65660367]
[1773183798445,0.65048644,2030.6,2029.9,0.65660367]
[1773183799343,6.449,2031.1,2029.9,0.65660367]
[1773183799344,0.64096059,2031.1,2029.9,0.65660367]
[1773183800539,0.64096059,2031.0,2029.9,0.65660367]
[1773183807556,0.64096059,2031.0,2030.2,0.63313149]
[1773183809158,0.64096059,2031.5,2030.8,0.63313149]
[1773183811064,6.69709,2031.7,2030.8,0.63313149]
[1773183811065,0.64096059,2031.3,2030.8,0.63313149]
[1773183813659,0.88709059,2031.3,2030.7,0.63313149]
[1773183813863,0.64096059,2030.9,2030.4,0.63313149]
[1773183824666,0.64096059,2030.4,2029.9,0.63313149]
[1773183824863,0.64096059,2030.2,2029.8,0.0057459]
[1773183825063,0.64096059,2030.0,2029.3,8.037]
[1773183825263,0.64096059,2030.0,2029.5,0.63313149]
[1773183825763,0.00107944,2030.4,2029.5,0.63313149]
[1773183825963,0.00107944,2030.4,2029.5,0.63802798]
[1773183826166,0.64204003,2030.4,2029.5,0.63802798]
[1773183829372,0.00107944,2030.4,2029.5,0.63802798]
[1773183829767,0.00107944,2030.4,2029.5,0.88436798]
[1773183830070,0.59526921,2030.8,2029.7,0.24632]
[1773183830270,0.59526921,2030.8,2029.8,0.59955639]
[1773183831072,0.6004934,2030.8,2029.8,0.59955639]
[1773183832077,0.59526921,2031.2,2030.0,0.59955639]
[1773183832278,0.59526921,2031.2,2030.2,0.59955639]
[1773183853788,0.59526921,2031.2,2030.3,0.59955639]
[1773183854991,0.59526921,2031.2,2030.5,0.59955639]
[1773183855195,0.59526921,2031.4,2030.5,0.59955639]
[1773183862298,0.59606259,2031.2,2030.5,0.59955639]
[1773183863195,0.59606259,2031.6,2030.5,0.59955639]
[1773183866700,0.59606259,2031.2,2030.5,0.59955639]
[1773183869503,0.59606259,2031.2,2030.4,0.61416174]
[1773183869709,0.59606259,2031.0,2030.3,0.61416174]
[1773183870401,2.18526081,2031.6,2030.3,0.61416174]
[1773183870402,0.59606259,2031.1,2030.3,0.61416174]
[1773183872806,0.59606259,2031.5,2030.3,0.61416174]
[1773183873202,0.59606259,2031.5,2030.5,0.61416174]
[1773183883813,0.59606259,2031.5,2030.8,0.61416174]
[1773183890512,0.63374865,2031.9,2031.0,0.63420118]
[1773183890715,0.63374865,2031.9,2031.0,0.63960568]
[1773183895716,0.63374865,2031.9,2031.2,0.63420118]
[1773183897421,0.63374865,2031.9,2031.4,0.63420118]
[1773183906233,10.58783573,2032.6,2031.8,0.63420118]
[1773183906234,0.63374865,2032.6,2031.8,0.63420118]
[1773183906427,0.63374865,2032.5,2031.8,0.63420118]
[1773183908730,0.63374865,2032.5,2031.1,0.24615]
[1773183908731,0.63374865,2032.1,2031.4,0.63420118]
[1773183908931,0.63374865,2031.9,2031.4,0.63420118]
[1773183909935,2.18377144,2032.2,2031.4,0.63420118]
[1773183909936,0.63374865,2032.1,2031.4,0.63420118]
[1773183913841,0.63374865,2032.1,2031.5,0.63420118]
[1773183914942,0.63374865,2032.2,2031.7,0.63420118]
[1773183915140,0.63374865,2032.4,2031.9,0.63420118]
[1773183915736,0.63374865,2032.5,2031.9,0.63420118]
[1773183916042,0.63374865,2032.9,2032.1,0.63420118]
[1773183916443,0.63374865,2032.9,2032.2,1.93774144]
[1773183916646,0.63374865,2032.9,2032.3,0.63420118]
[1773183916847,0.63374865,2033.0,2032.3,0.63420118]
[1773183919152,1.93774144,2034.0,2031.7,7.81]
[1773183919153,0.63374865,2033.8,2032.9,0.12957527]
[1773183919453,0.59955125,2033.5,2032.9,0.13414645]
[1773183919651,0.59955125,2033.5,2033.1,0.13016641]
[1773183920555,1.93774144,2033.6,2033.0,0.13453737]
[1773183920755,0.59955125,2033.5,2032.9,0.00465858]
[1773183921353,0.59955125,2033.3,2032.5,0.13453737]
[1773183921556,0.59955125,2033.1,2032.3,0.13453737]
[1773183921854,0.59955125,2033.1,2032.4,0.13520479]
[1773183922361,0.60473153,2033.1,2032.4,0.14103974]
[1773183922561,0.60473153,2033.1,2032.6,0.15718506]
[1773183923864,0.60473153,2033.1,2032.4,0.16368807]
[1773183924362,0.60473153,2033.1,2032.7,0.15785312]
[1773183924557,0.60473153,2033.1,2032.7,0.15410867]
[1773183925164,0.60473153,2033.1,2032.5,0.15410867]
[1773183928968,0.60473153,2033.1,2032.4,0.13407519]